{"text_format":"1","workbook":"xlsx","n_sheets":6,"sheets":["Uvod","Pom2_VD","Kalkulacka","Pom","Vyhodnoceni_TSS","Tisk"],"not_rendered":{"charts":0,"images":1,"macros":1,"external_links":0,"defined_names":4,"comments":0,"pivot_tables":0},"unopened":[],"bounds":{"document_bytes":16777216,"sheet_cells":100000,"rows_first":2000,"rows_last":500,"rows_between":2000,"halvings":0,"cell_chars":16384,"cell_head_chars":4096},"cells_cut":0,"cells_raw":0,"read":"whole","date_system":"1900"}

{"sheet":"Uvod","index":0,"n_rows":12,"n_cols":3,"rows_kept":12,"cut":false,"hidden":false,"merged":[[0,0,1,15],[4,2,5,13]]}
["KB KALKULAČKA PAUŠÁLNÍ DAŇ"]
[]
[]
[]
[null,null,"KB KALKULAČKA PAUŠÁLNÍ DAŇ slouží výhradně pro kalkulaci akceptovatelného ročního příjmu a zadávání do aplikace TSS/CLO u klienta přihlášeného v režimu paušální daně. "]
[]
[]
[]
[]
[]
[]
[null,null,"Aktuální verze aplikace: 4.1"]

{"sheet":"Pom2_VD","index":1,"n_rows":3,"n_cols":2,"rows_kept":3,"cut":false,"hidden":false,"merged":[]}
["Sazba daně:",7498]
[null,16745]
[null,27139]

{"sheet":"Kalkulacka","index":2,"n_rows":43,"n_cols":5,"rows_kept":43,"cut":false,"hidden":false,"merged":[[11,2,11,3],[16,2,16,6],[0,0,1,15],[5,3,5,4],[7,3,7,4],[9,3,9,4],[13,2,13,3]]}
["PAUŠÁLNÍ DAŇ - AKCEPTOVATELNÁ VÝŠE PŘÍJMŮ Z PODNIKÁNÍ"]
[]
[]
[]
[]
[null,null,"Datum narození žadatele:\n(datum narození ve formátu DDMMRRRR)"]
[null,null,null,"Kalkulacka_pauslani_dan"]
[null,null,"Jméno klienta:"]
[]
[null,null,"Datum žádosti:"]
[]
[null,null,"Prohlášený příjem klienta dle Čestného prohlášení z výše příjmu z podnikání (CPS - roční):\n(šablona CESTPRPC)"]
[]
[null,null,"Aktuální sazba měsíční paušální daně uvedená na aktuálním výpisu:",null,7498]
[]
[]
[null,null,"Příjem max. od dvou plátců (za posledních 12 ukončených kalendářních měsíců dle výpisů/transakční historie):"]
[]
[]
[]
[null,null,"1. měsíc "]
[]
[null,null,"2. měsíc "]
[]
[null,null,"3. měsíc "]
[]
[null,null,"4. měsíc"]
[]
[null,null,"5. měsíc "]
[]
[null,null,"6. měsíc"]
[]
[null,null,"7. měsíc"]
[]
[null,null,"8. měsíc "]
[]
[null,null,"9. měsíc "]
[]
[null,null,"10. měsíc "]
[]
[null,null,"11. měsíc "]
[]
[null,null,"12. měsíc "]

{"sheet":"Pom","index":3,"n_rows":36,"n_cols":7,"rows_kept":36,"cut":false,"hidden":false,"merged":[]}
[]
[]
[null,"Součet příjmů:",{"$f":"SUM(Kalkulacka!D21,Kalkulacka!D23,Kalkulacka!D25,Kalkulacka!D27,Kalkulacka!D29,Kalkulacka!D31,Kalkulacka!D33,Kalkulacka!D35,Kalkulacka!D37,Kalkulacka!D39,Kalkulacka!D41,Kalkulacka!D43,Kalkulacka!F21,Kalkulacka!F23,Kalkulacka!F25,Kalkulacka!F27,Kalkulacka!F29,Kalkulacka!F31,Kalkulacka!F33,Kalkulacka!F35,Kalkulacka!F37,Kalkulacka!F39,Kalkulacka!F41,Kalkulacka!F43)","v":0},null,null,null,"Roky"]
[null,"Příjmy nad 2M?:",{"$f":"IF(C3>2000000,\"ERROR\",C3)","v":0},{"$f":"IF(Kalkulacka!E12>2000000,\"ERROR\",Kalkulacka!E12)","v":0},null,null,2022]
[null,"Výdaje:",0.3]
[null,"Měsíční konstanta:",{"$f":"Kalkulacka!E14","v":7498},{"$f":"C6","v":7498}]
[null,"Upravené příjmy:",{"$f":"MAX(0,C3-(C5*C3)-(12*C6))","v":0},{"$f":"MAX(0,C3-(C5*C3)-(12*D6))","v":0}]
[null,"Rok",2021,2022]
[null,"Konečné příjmy:",{"$f":"MIN(C7,Kalkulacka!E12)","v":0},{"$f":"MIN(D7,Kalkulacka!E12)","v":0},null,{"$f":"Pom!D9","v":0}]
[]
[null,"2. příjem",false]
[]
[null,null,"1. Příjem","2. Příjem"]
[null,"Id klienta",{"$f":"Kalkulacka!D6","v":0},{"$f":"Kalkulacka!D6","v":0}]
[null,"Jméno klienta",{"$f":"Kalkulacka!D8","v":0},{"$f":"Kalkulacka!D8","v":0}]
[null,"Datum žádosti",{"$f":"Kalkulacka!D10","v":"00:00:00"},{"$f":"Kalkulacka!D10","v":"00:00:00"}]
[null,"Prohlášený příjem",{"$f":"Kalkulacka!E12","v":0},{"$f":"Kalkulacka!E12","v":0}]
[null,null,{"$f":"OR(C14=0,C14=\" \",C15=0,C15=\" \",C16=0,C16=\" \",C17=0,C17=\" \")","v":true},{"$f":"OR(D14=0,D14=\" \",D15=0,D15=\" \",D16=0,D16=\" \",D17=0,D17=\" \")","v":true}]
[null,"něco není zadáno",{"$f":"IF(C18=TRUE,1,0)","v":1},{"$f":"IF(D18=TRUE,1,0)","v":1}]
[null,"1. měsíc",{"$f":"Kalkulacka!D21","v":0},{"$f":"Kalkulacka!F21","v":0}]
[null,"2. měsíc",{"$f":"Kalkulacka!D23","v":0},{"$f":"Kalkulacka!F23","v":0}]
[null,"3. měsíc",{"$f":"Kalkulacka!D25","v":0},{"$f":"Kalkulacka!F25","v":0}]
[null,"4. měsíc",{"$f":"Kalkulacka!D27","v":0},{"$f":"Kalkulacka!F27","v":0}]
[null,"5. měsíc",{"$f":"Kalkulacka!D29","v":0},{"$f":"Kalkulacka!F29","v":0}]
[null,"6. měsíc",{"$f":"Kalkulacka!D31","v":0},{"$f":"Kalkulacka!F31","v":0}]
[null,"7. měsíc",{"$f":"Kalkulacka!D33","v":0},{"$f":"Kalkulacka!F33","v":0}]
[null,"8. měsíc",{"$f":"Kalkulacka!D35","v":0},{"$f":"Kalkulacka!F35","v":0}]
[null,"9. měsíc",{"$f":"Kalkulacka!D37","v":0},{"$f":"Kalkulacka!F37","v":0}]
[null,"10. měsíc",{"$f":"Kalkulacka!D39","v":0},{"$f":"Kalkulacka!F39","v":0}]
[null,"11. měsíc",{"$f":"Kalkulacka!D41","v":0},{"$f":"Kalkulacka!F41","v":0}]
[null,"12. měsíc",{"$f":"Kalkulacka!D43","v":0},{"$f":"Kalkulacka!F43","v":0}]
[null,null,{"$f":"OR(C20=\" \",C21=\" \",C22=\" \",C23=\" \",C24=\" \",C25=\" \",C26=\" \",C27=\" \",C28=\" \",C29=\" \",C30=\" \",C31=\" \")","v":false},{"$f":"OR(D20=\" \",D21=\" \",D22=\" \",D23=\" \",D24=\" \",D25=\" \",D26=\" \",D27=\" \",D28=\" \",D29=\" \",D30=\" \",D31=\" \",C20=\" \",C21=\" \",C22=\" \",C23=\" \",C24=\" \",C25=\" \",C26=\" \",C27=\" \",C28=\" \",C29=\" \",C30=\" \",C31=\" \")","v":false}]
[null,"něco není zadáno",{"$f":"IF(C32=TRUE,1,0)","v":0},{"$f":"IF(D32=TRUE,1,0)","v":0}]
[null,"1 = něco chybí; 0 = všechno je vyplněno"]
[]
[null,null,{"$f":"COUNTIFS(C20:C31,\"=0\")","v":12},{"$f":"COUNTIFS(D20:D31,\"=0\")","v":12},{"$f":"OR(C36>2,D36>2)","v":true}]

{"sheet":"Vyhodnoceni_TSS","index":4,"n_rows":15,"n_cols":15,"rows_kept":15,"cut":false,"hidden":false,"merged":[[14,5,14,6],[14,9,14,10],[0,0,1,15],[2,8,2,12],[2,14,2,15],[6,3,7,7],[9,8,9,12],[9,14,9,15]]}
["AKCEPTOVATELNÁ VÝŠE PŘÍJMŮ Z PODNIKÁNÍ PRO TSS/CLO"]
[]
[null,null,"Příjmy ze zaměstnání",null,null,null,null,null,"Příjmy z podnikání",null,null,null,null,null,"Ostatní příjmy"]
[]
[null,null,null,"Způsob prokázání příjmů",null,null,null,null,"▼"]
[]
[null,null,null,"Příjmy z podnikatelské činnosti - roční\nčistý příjem z daňového přiznání",null,null,null,null,null,{"$f":"Pom!F9","v":0}]
[]
[]
[null,null,"Příjmy ze zaměstnání",null,null,null,null,null,"Příjmy z podnikání",null,null,null,null,null,"Ostatní příjmy"]
[]
[]
[null,null,null,null,null,"Počet doplňkových příjmů",null,null,null,1,"▼"]
[]
[null,null,null,null,null,"Paušální daň",null,null,null,0]

{"sheet":"Tisk","index":5,"n_rows":45,"n_cols":6,"rows_kept":45,"cut":false,"hidden":false,"merged":[[0,1,2,14],[12,2,12,6],[4,3,4,4],[6,3,6,4],[8,3,8,4],[10,2,10,3]]}
[null,"k "]
[]
[]
[]
[null,null,"Datum narození žadatele:",{"$f":"Kalkulacka!D6","v":0}]
[null,null,null,""]
[null,null,"Jméno klienta:",{"$f":"Kalkulacka!D8","v":0}]
[]
[null,null,"Datum žádosti:",{"$f":"Kalkulacka!D10","v":"00:00:00"}]
[]
[null,null,"Prohlášený příjem klienta dle Čestného prohlášení z výše příjmu z podnikání (CPS - roční):\n(šablona CESTPRPC)",null,{"$f":"Kalkulacka!E12","v":0}]
[]
[null,null,"Příjem max. od dvou plátců (za jednotlivé měsíce dle výpisů/transakční historie):"]
[]
[null,null,null,"Příjem od prvního plátce\n(subjektu):",null,"Příjem od druhého plátce (subjektu):"]
[]
[null,null,"1. měsíc",{"$f":"Kalkulacka!D21","v":0},null,{"$f":"Kalkulacka!F21","v":0}]
[]
[null,null,"2. měsíc ",{"$f":"Kalkulacka!D23","v":0},null,{"$f":"Kalkulacka!F23","v":0}]
[]
[null,null,"3. měsíc ",{"$f":"Kalkulacka!D25","v":0},null,{"$f":"Kalkulacka!F25","v":0}]
[]
[null,null,"4. měsíc",{"$f":"Kalkulacka!D27","v":0},null,{"$f":"Kalkulacka!F27","v":0}]
[]
[null,null,"5. měsíc ",{"$f":"Kalkulacka!D29","v":0},null,{"$f":"Kalkulacka!F29","v":0}]
[]
[null,null,"6. měsíc",{"$f":"Kalkulacka!D31","v":0},null,{"$f":"Kalkulacka!F31","v":0}]
[]
[null,null,"7. měsíc ",{"$f":"Kalkulacka!D33","v":0},null,{"$f":"Kalkulacka!F33","v":0}]
[]
[null,null,"8. měsíc",{"$f":"Kalkulacka!D35","v":0},null,{"$f":"Kalkulacka!F35","v":0}]
[]
[null,null,"9. měsíc ",{"$f":"Kalkulacka!D37","v":0},null,{"$f":"Kalkulacka!F37","v":0}]
[]
[null,null,"10. měsíc",{"$f":"Kalkulacka!D39","v":0},null,{"$f":"Kalkulacka!F39","v":0}]
[]
[null,null,"11. měsíc",{"$f":"Kalkulacka!D41","v":0},null,{"$f":"Kalkulacka!F41","v":0}]
[]
[null,null,"12. měsíc",{"$f":"Kalkulacka!D43","v":0},null,{"$f":"Kalkulacka!F43","v":0}]
[]
[null,null,"Akceptovatelná výše příjmů zadaná do TSS/CLO:",null,{"$f":"Vyhodnoceni_TSS!J7","v":0}]
[]
[]
[null,null,{"$f":"TODAY()","v":"2024-02-08"}]
[null,null,"Datum",null,"Podpis"]